[Event "Titled Tuesday Blitz May 16 Late 2023"]
[White "Sanchez, Robert"]
[Black "Tarnowska, Aleksandra"]
[WhiteFideId "2034360"]
[BlackFideId "1180967"]
[WhiteElo "1859"]
[BlackElo "1776"]
[Result "0-1"]
[Round "08"]
[TimeControl "180+2"]
[Date "2023.05.16"]
[WhiteClock "0:00:34"]
[BlackClock "0:00:04"]

1. Nf3 {[%clk 0:03:00]}  d5 {[%clk 0:02:58]} 2. e3 {[%clk 0:02:54]}  Nf6 {[%clk 0:02:57]} 3. c4 {[%clk 0:02:54]}  c6 {[%clk 0:02:56]} 4. Nc3 {[%clk 0:02:54]}  Nbd7 {[%clk 0:02:46]} 5. d4 {[%clk 0:02:53]}  e6 {[%clk 0:02:35]} 6. Bd3 {[%clk 0:02:53]}  Bb4 {[%clk 0:02:30]} 7. O-O {[%clk 0:02:53]}  O-O {[%clk 0:02:29]} 8. a3 {[%clk 0:02:51]}  Bd6 {[%clk 0:02:28]} 9. e4 {[%clk 0:02:50]}  e5 {[%clk 0:02:11]} 10. exd5 {[%clk 0:02:45]}  cxd5 {[%clk 0:02:01]} 11. Nxd5 {[%clk 0:02:41]}  e4 {[%clk 0:01:56]} 12. Bc2 {[%clk 0:02:34]}  exf3 {[%clk 0:01:49]} 13. Qxf3 {[%clk 0:02:34]}  Nxd5 {[%clk 0:01:49]} 14. Qxd5 {[%clk 0:02:35]}  Nf6 {[%clk 0:01:49]} 15. Qf3 {[%clk 0:02:33]}  Bg4 {[%clk 0:01:46]} 16. Qb3 {[%clk 0:02:31]}  Qc7 {[%clk 0:01:41]} 17. h3 {[%clk 0:02:30]}  Bh5 {[%clk 0:01:28]} 18. Bg5 {[%clk 0:02:28]}  Nd7 {[%clk 0:01:23]} 19. Rfe1 {[%clk 0:02:17]}  Bg6 {[%clk 0:01:17]} 20. Bxg6 {[%clk 0:02:16]}  hxg6 {[%clk 0:01:17]} 21. h4 {[%clk 0:02:09]}  Rfe8 {[%clk 0:01:15]} 22. Qf3 {[%clk 0:01:58]}  b6 {[%clk 0:01:07]} 23. b3 {[%clk 0:01:56]}  Nf8 {[%clk 0:01:00]} 24. a4 {[%clk 0:01:48]}  Ne6 {[%clk 0:00:59]} 25. Be3 {[%clk 0:01:48]}  Bb4 {[%clk 0:00:55]} 26. Red1 {[%clk 0:01:47]}  Rad8 {[%clk 0:00:51]} 27. h5 {[%clk 0:01:46]}  gxh5 {[%clk 0:00:50]} 28. Qxh5 {[%clk 0:01:46]}  Nf4 {[%clk 0:00:46]} 29. Qf3 {[%clk 0:01:36]}  Ng6 {[%clk 0:00:39]} 30. d5 {[%clk 0:01:31]}  Bc5 {[%clk 0:00:30]} 31. Bg5 {[%clk 0:01:28]}  Rd7 {[%clk 0:00:21]} 32. Re1 {[%clk 0:01:26]}  Qc8 {[%clk 0:00:16]} 33. Qf5 {[%clk 0:01:18]}  Rc7 {[%clk 0:00:12]} 34. Rxe8+ {[%clk 0:01:15]}  Qxe8 {[%clk 0:00:13]} 35. Rd1 {[%clk 0:01:08]}  Qd7 {[%clk 0:00:12]} 36. Qf3 {[%clk 0:01:06]}  Rc8 {[%clk 0:00:10]} 37. Bd2 {[%clk 0:01:04]}  Re8 {[%clk 0:00:09]} 38. Bc3 {[%clk 0:01:04]}  Ne5 {[%clk 0:00:08]} 39. Qe2 {[%clk 0:01:03]}  Bd6 {[%clk 0:00:07]} 40. Qe4 {[%clk 0:00:53]}  Qg4 {[%clk 0:00:05]} 41. Qxg4 {[%clk 0:00:51]}  Nxg4 {[%clk 0:00:06]} 42. g3 {[%clk 0:00:45]}  Re2 {[%clk 0:00:05]} 43. Rf1 {[%clk 0:00:43]}  Bc5 {[%clk 0:00:06]} 44. Kg2 {[%clk 0:00:42]}  Nxf2 {[%clk 0:00:05]} 45. Kf3 {[%clk 0:00:40]}  Rc2 {[%clk 0:00:04]} 46. Be5 {[%clk 0:00:40]}  Nd3 {[%clk 0:00:03]} 47. Bb8 {[%clk 0:00:34]}  f6 {[%clk 0:00:04]} 0-1


[Site "https://www.chess.com"]

[Event "Titled Tuesday Blitz May 16 Late 2023"]
[White "Osmonbekov, Talaibek"]
[Black "Talbi, Chafik"]
[WhiteFideId "2017253"]
[BlackFideId "7903715"]
[WhiteElo "2135"]
[BlackElo "2186"]
[Result "1-0"]
[Round "08"]
[TimeControl "180+2"]
[Date "2023.05.16"]
[WhiteClock "0:01:28"]
[BlackClock "0:01:10"]

1. d4 {[%clk 0:03:00]}  c6 {[%clk 0:02:59]} 2. Bf4 {[%clk 0:03:00]}  g6 {[%clk 0:02:59]} 3. Nc3 {[%clk 0:03:00]}  d6 {[%clk 0:02:59]} 4. e4 {[%clk 0:03:01]}  Bg7 {[%clk 0:02:59]} 5. h4 {[%clk 0:03:00]}  Nf6 {[%clk 0:02:58]} 6. Be2 {[%clk 0:02:56]}  Qa5 {[%clk 0:02:50]} 7. f3 {[%clk 0:02:50]}  Nbd7 {[%clk 0:02:38]} 8. Qd2 {[%clk 0:02:44]}  h6 {[%clk 0:02:26]} 9. O-O-O {[%clk 0:02:37]}  b5 {[%clk 0:02:15]} 10. a3 {[%clk 0:02:37]}  Qb6 {[%clk 0:02:08]} 11. Kb1 {[%clk 0:02:28]}  a5 {[%clk 0:02:07]} 12. e5 {[%clk 0:02:15]}  dxe5 {[%clk 0:01:46]} 13. dxe5 {[%clk 0:02:14]}  Nh5 {[%clk 0:01:43]} 14. e6 {[%clk 0:01:58]}  fxe6 {[%clk 0:01:38]} 15. Bd3 {[%clk 0:01:58]}  Nxf4 {[%clk 0:01:32]} 16. Qxf4 {[%clk 0:01:57]}  Nf8 {[%clk 0:01:27]} 17. Nge2 {[%clk 0:01:40]}  b4 {[%clk 0:01:26]} 18. Na4 {[%clk 0:01:40]}  Qb8 {[%clk 0:01:25]} 19. Qg4 {[%clk 0:01:31]}  bxa3 {[%clk 0:01:22]} 20. Bxg6+ {[%clk 0:01:28]}  Nxg6 {[%clk 0:01:10]} 21. Qxg6+ {[%clk 0:01:29]}  Kf8 {[%clk 0:01:10]} 22. Rd8# {[%clk 0:01:28]} 1-0


[Site "https://www.chess.com"]

[Event "Titled Tuesday Blitz May 16 Late 2023"]
[White "Bortnyk, Olexandr"]
[Black "Caruana, Fabiano"]
[WhiteFideId "14120828"]
[BlackFideId "2020009"]
[WhiteElo "2734"]
[BlackElo "2837"]
[Result "1-0"]
[Round "09"]
[TimeControl "180+2"]
[Date "2023.05.16"]
[WhiteClock "0:00:06"]
[BlackClock "0:00:10"]

1. d4 {[%clk 0:03:00]}  Nf6 {[%clk 0:02:58]} 2. Nc3 {[%clk 0:03:01]}  d5 {[%clk 0:02:58]} 3. Bf4 {[%clk 0:03:01]}  c5 {[%clk 0:02:57]} 4. e4 {[%clk 0:03:02]}  cxd4 {[%clk 0:02:51]} 5. Qxd4 {[%clk 0:03:03]}  Nc6 {[%clk 0:02:48]} 6. Bb5 {[%clk 0:03:03]}  Bd7 {[%clk 0:02:45]} 7. Bxc6 {[%clk 0:03:03]}  Bxc6 {[%clk 0:02:46]} 8. e5 {[%clk 0:03:03]}  Ne4 {[%clk 0:02:44]} 9. e6 {[%clk 0:03:03]}  fxe6 {[%clk 0:02:44]} 10. Nf3 {[%clk 0:03:02]}  Qb6 {[%clk 0:02:37]} 11. Qxb6 {[%clk 0:02:43]}  axb6 {[%clk 0:02:38]} 12. Nxe4 {[%clk 0:02:44]}  dxe4 {[%clk 0:02:37]} 13. Nd4 {[%clk 0:02:43]}  Kf7 {[%clk 0:02:07]} 14. O-O {[%clk 0:02:39]}  g6 {[%clk 0:01:47]} 15. Be5 {[%clk 0:02:39]}  Bg7 {[%clk 0:01:44]} 16. Bxg7 {[%clk 0:02:37]}  Kxg7 {[%clk 0:01:45]} 17. Rfe1 {[%clk 0:02:10]}  Bd5 {[%clk 0:01:39]} 18. b3 {[%clk 0:02:07]}  e5 {[%clk 0:01:39]} 19. Nb5 {[%clk 0:02:04]}  Bc6 {[%clk 0:01:30]} 20. Nc3 {[%clk 0:02:04]}  Rhd8 {[%clk 0:01:29]} 21. Re2 {[%clk 0:01:26]}  Rd4 {[%clk 0:01:23]} 22. h3 {[%clk 0:01:04]}  b5 {[%clk 0:01:15]} 23. Rae1 {[%clk 0:00:56]}  Kf6 {[%clk 0:01:12]} 24. Ra1 {[%clk 0:00:38]}  b4 {[%clk 0:01:10]} 25. Nd1 {[%clk 0:00:38]}  h5 {[%clk 0:00:51]} 26. Ne3 {[%clk 0:00:37]}  b5 {[%clk 0:00:50]} 27. h4 {[%clk 0:00:31]}  Bd7 {[%clk 0:00:50]} 28. Ree1 {[%clk 0:00:29]}  Be6 {[%clk 0:00:49]} 29. Rec1 {[%clk 0:00:28]}  Rd2 {[%clk 0:00:46]} 30. Kf1 {[%clk 0:00:27]}  g5 {[%clk 0:00:34]} 31. hxg5+ {[%clk 0:00:28]}  Kxg5 {[%clk 0:00:35]} 32. Ke1 {[%clk 0:00:28]}  Rd6 {[%clk 0:00:35]} 33. Rd1 {[%clk 0:00:28]}  h4 {[%clk 0:00:32]} 34. Rd2 {[%clk 0:00:21]}  Kf6 {[%clk 0:00:32]} 35. Ke2 {[%clk 0:00:20]}  Bf7 {[%clk 0:00:29]} 36. Rh1 {[%clk 0:00:12]}  Bh5+ {[%clk 0:00:24]} 37. g4 {[%clk 0:00:09]}  Bg6 {[%clk 0:00:18]} 38. Rxh4 {[%clk 0:00:08]}  Rxa2 {[%clk 0:00:18]} 39. Rh8 {[%clk 0:00:07]}  Kg5 {[%clk 0:00:15]} 40. Rb8 {[%clk 0:00:05]}  Ra5 {[%clk 0:00:12]} 41. Rb7 {[%clk 0:00:06]}  Kf6 {[%clk 0:00:11]} 42. Nd5+ {[%clk 0:00:06]}  Ke6 {[%clk 0:00:10]} 43. Rxe7# {[%clk 0:00:06]} 1-0


[Site "https://www.chess.com"]

[Event "Titled Tuesday Blitz May 16 Late 2023"]
[White "Andreikin, Dmitry"]
[Black "Hakobyan, Aram"]
[WhiteFideId "4158814"]
[BlackFideId "13306677"]
[WhiteElo "2736"]
[BlackElo "2584"]
[Result "0-1"]
[Round "09"]
[TimeControl "180+2"]
[Date "2023.05.16"]
[WhiteClock "0:00:00"]
[BlackClock "0:00:29"]

1. d4 {[%clk 0:03:00]}  Nf6 {[%clk 0:03:00]} 2. Bg5 {[%clk 0:02:59]}  d5 {[%clk 0:02:59]} 3. Nd2 {[%clk 0:02:58]}  c5 {[%clk 0:02:57]} 4. dxc5 {[%clk 0:02:58]}  e6 {[%clk 0:02:49]} 5. e4 {[%clk 0:02:57]}  h6 {[%clk 0:02:37]} 6. Bh4 {[%clk 0:02:54]}  Bxc5 {[%clk 0:02:30]} 7. Qe2 {[%clk 0:02:54]}  Nc6 {[%clk 0:02:25]} 8. O-O-O {[%clk 0:02:51]}  Be7 {[%clk 0:02:23]} 9. f4 {[%clk 0:02:42]}  Qa5 {[%clk 0:02:20]} 10. a3 {[%clk 0:02:18]}  dxe4 {[%clk 0:02:05]} 11. Bxf6 {[%clk 0:02:13]}  Bxf6 {[%clk 0:02:06]} 12. Nxe4 {[%clk 0:02:12]}  Be7 {[%clk 0:02:05]} 13. Nd6+ {[%clk 0:01:55]}  Bxd6 {[%clk 0:02:05]} 14. Rxd6 {[%clk 0:01:55]}  Qc7 {[%clk 0:02:04]} 15. Qd2 {[%clk 0:01:52]}  O-O {[%clk 0:01:54]} 16. Nf3 {[%clk 0:01:52]}  b6 {[%clk 0:01:47]} 17. Bd3 {[%clk 0:01:41]}  Rd8 {[%clk 0:01:41]} 18. Rxd8+ {[%clk 0:01:32]}  Nxd8 {[%clk 0:01:41]} 19. Rd1 {[%clk 0:01:25]}  Bb7 {[%clk 0:01:41]} 20. Qe3 {[%clk 0:01:12]}  Nc6 {[%clk 0:01:40]} 21. g4 {[%clk 0:01:08]}  Ne7 {[%clk 0:01:38]} 22. Ne5 {[%clk 0:00:58]}  Rd8 {[%clk 0:01:38]} 23. g5 {[%clk 0:00:46]}  hxg5 {[%clk 0:01:32]} 24. fxg5 {[%clk 0:00:43]}  Nf5 {[%clk 0:01:31]} 25. Bxf5 {[%clk 0:00:33]}  Rxd1+ {[%clk 0:01:32]} 26. Kxd1 {[%clk 0:00:33]}  exf5 {[%clk 0:01:33]} 27. Qd4 {[%clk 0:00:27]}  Be4 {[%clk 0:01:32]} 28. c3 {[%clk 0:00:27]}  Qc8 {[%clk 0:01:14]} 29. h4 {[%clk 0:00:21]}  Qe8 {[%clk 0:01:02]} 30. Kd2 {[%clk 0:00:17]}  Qb5 {[%clk 0:00:55]} 31. h5 {[%clk 0:00:10]}  Qxb2+ {[%clk 0:00:52]} 32. Kd1 {[%clk 0:00:07]}  Qc2+ {[%clk 0:00:48]} 33. Ke1 {[%clk 0:00:07]}  Qc1+ {[%clk 0:00:49]} 34. Ke2 {[%clk 0:00:08]}  Qxg5 {[%clk 0:00:50]} 35. Qd7 {[%clk 0:00:02]}  Qg2+ {[%clk 0:00:37]} 36. Ke3 {[%clk 0:00:03]}  Qg3+ {[%clk 0:00:31]} 37. Kd4 {[%clk 0:00:03]}  Qf2+ {[%clk 0:00:30]} 38. Kc4 {[%clk 0:00:03]}  Qc5+ {[%clk 0:00:28]} 39. Kb3 {[%clk 0:00:00]}  Qxe5 {[%clk 0:00:29]} 0-1


[Site "https://www.chess.com"]

[Event "Titled Tuesday Blitz May 16 Late 2023"]
[White "Sarana, Alexey"]
[Black "Mihajlov, Sebastian"]
[WhiteFideId "24133795"]
[BlackFideId "1512110"]
[WhiteElo "2714"]
[BlackElo "2478"]
[Result "0-1"]
[Round "09"]
[TimeControl "180+2"]
[Date "2023.05.16"]
[WhiteClock "0:00:00"]
[BlackClock "0:00:01"]

1. d4 {[%clk 0:03:00]}  Nf6 {[%clk 0:02:54]} 2. c4 {[%clk 0:03:01]}  g6 {[%clk 0:02:55]} 3. Nc3 {[%clk 0:03:01]}  Bg7 {[%clk 0:02:56]} 4. e4 {[%clk 0:03:02]}  O-O {[%clk 0:02:57]} 5. Bd3 {[%clk 0:03:02]}  d6 {[%clk 0:02:57]} 6. Nge2 {[%clk 0:03:03]}  Nc6 {[%clk 0:02:57]} 7. O-O {[%clk 0:03:03]}  e5 {[%clk 0:02:58]} 8. d5 {[%clk 0:03:03]}  Ne7 {[%clk 0:02:57]} 9. f3 {[%clk 0:02:58]}  Nd7 {[%clk 0:02:53]} 10. Kh1 {[%clk 0:02:50]}  f5 {[%clk 0:02:52]} 11. exf5 {[%clk 0:02:51]}  Nxf5 {[%clk 0:02:49]} 12. Ne4 {[%clk 0:02:46]}  h6 {[%clk 0:02:35]} 13. Bd2 {[%clk 0:02:41]}  Nf6 {[%clk 0:02:15]} 14. Qc2 {[%clk 0:02:37]}  Nxe4 {[%clk 0:02:05]} 15. Bxe4 {[%clk 0:02:38]}  g5 {[%clk 0:02:02]} 16. c5 {[%clk 0:02:28]}  Qf6 {[%clk 0:01:56]} 17. Rac1 {[%clk 0:02:21]}  Bd7 {[%clk 0:01:55]} 18. a4 {[%clk 0:02:04]}  dxc5 {[%clk 0:01:31]} 19. Qxc5 {[%clk 0:02:04]}  Bxa4 {[%clk 0:01:32]} 20. Qxc7 {[%clk 0:02:03]}  Bb5 {[%clk 0:01:28]} 21. Rfe1 {[%clk 0:01:57]}  Nd6 {[%clk 0:00:51]} 22. Bb4 {[%clk 0:01:37]}  Rfc8 {[%clk 0:00:35]} 23. Qxd6 {[%clk 0:01:34]}  Qxd6 {[%clk 0:00:33]} 24. Bxd6 {[%clk 0:01:34]}  Bxe2 {[%clk 0:00:33]} 25. Be7 {[%clk 0:01:27]}  Rxc1 {[%clk 0:00:27]} 26. Rxc1 {[%clk 0:01:28]}  Bf8 {[%clk 0:00:23]} 27. Rc7 {[%clk 0:01:08]}  Bxe7 {[%clk 0:00:19]} 28. Rxe7 {[%clk 0:01:08]}  Rd8 {[%clk 0:00:14]} 29. h4 {[%clk 0:00:56]}  gxh4 {[%clk 0:00:12]} 30. Kh2 {[%clk 0:00:51]}  Bc4 {[%clk 0:00:11]} 31. Rxe5 {[%clk 0:00:50]}  a5 {[%clk 0:00:08]} 32. Kh3 {[%clk 0:00:46]}  a4 {[%clk 0:00:07]} 33. Kxh4 {[%clk 0:00:20]}  Rd6 {[%clk 0:00:08]} 34. Re7 {[%clk 0:00:17]}  Rb6 {[%clk 0:00:08]} 35. d6 {[%clk 0:00:16]}  Rxd6 {[%clk 0:00:08]} 36. Rxb7 {[%clk 0:00:16]}  Rd2 {[%clk 0:00:08]} 37. g4 {[%clk 0:00:16]}  Bb3 {[%clk 0:00:07]} 38. Kh5 {[%clk 0:00:15]}  Rxb2 {[%clk 0:00:06]} 39. Kxh6 {[%clk 0:00:15]}  Kf8 {[%clk 0:00:06]} 40. Ra7 {[%clk 0:00:13]}  Ra2 {[%clk 0:00:03]} 41. g5 {[%clk 0:00:11]}  a3 {[%clk 0:00:03]} 42. g6 {[%clk 0:00:12]}  Rh2+ {[%clk 0:00:03]} 43. Kg5 {[%clk 0:00:12]}  a2 {[%clk 0:00:04]} 44. Kf6 {[%clk 0:00:09]}  Ke8 {[%clk 0:00:04]} 45. Bf5 {[%clk 0:00:07]}  Kd8 {[%clk 0:00:04]} 46. g7 {[%clk 0:00:05]}  Rg2 {[%clk 0:00:03]} 47. f4 {[%clk 0:00:04]}  Rg1 {[%clk 0:00:03]} 48. Rd7+ {[%clk 0:00:04]}  Ke8 {[%clk 0:00:03]} 49. Ra7 {[%clk 0:00:02]}  a1=Q+ {[%clk 0:00:04]} 50. Rxa1 {[%clk 0:00:02]}  Rxa1 {[%clk 0:00:05]} 51. Bg6+ {[%clk 0:00:02]}  Kd8 {[%clk 0:00:04]} 52. f5 {[%clk 0:00:03]}  Bg8 {[%clk 0:00:04]} 53. Kg5 {[%clk 0:00:02]}  Ra5 {[%clk 0:00:02]} 54. Kf6 {[%clk 0:00:01]}  Ra6+ {[%clk 0:00:02]} 55. Kg5 {[%clk 0:00:02]}  Ke7 {[%clk 0:00:03]} 56. Bh5 {[%clk 0:00:03]}  Rf6 {[%clk 0:00:02]} 57. Bg6 {[%clk 0:00:03]}  Rc6 {[%clk 0:00:02]} 58. Bh5 {[%clk 0:00:03]}  Rc5 {[%clk 0:00:03]} 59. Bg6 {[%clk 0:00:04]}  Bf7 {[%clk 0:00:03]} 60. Kh6 {[%clk 0:00:00]}  Rc1 {[%clk 0:00:01]} 0-1


[Site "https://www.chess.com"]

[Event "Titled Tuesday Blitz May 16 Late 2023"]
[White "Martinez Alcantara, Jose Eduardo"]
[Black "Krzyzanowski, Marcin"]
[WhiteFideId "3805662"]
[BlackFideId "1132199"]
[WhiteElo "2711"]
[BlackElo "2471"]
[Result "1-0"]
[Round "09"]
[TimeControl "180+2"]
[Date "2023.05.16"]
[WhiteClock "0:00:07"]
[BlackClock "0:00:00"]

1. e4 {[%clk 0:02:59]}  c5 {[%clk 0:03:00]} 2. Nf3 {[%clk 0:02:57]}  Nc6 {[%clk 0:03:00]} 3. c3 {[%clk 0:02:53]}  Nf6 {[%clk 0:02:58]} 4. Bd3 {[%clk 0:02:54]}  d6 {[%clk 0:02:51]} 5. h3 {[%clk 0:02:53]}  e5 {[%clk 0:02:50]} 6. Bc2 {[%clk 0:02:51]}  Be7 {[%clk 0:02:50]} 7. d3 {[%clk 0:02:50]}  O-O {[%clk 0:02:50]} 8. Bg5 {[%clk 0:02:51]}  Ne8 {[%clk 0:02:45]} 9. Bxe7 {[%clk 0:02:42]}  Qxe7 {[%clk 0:02:46]} 10. Nbd2 {[%clk 0:02:28]}  Be6 {[%clk 0:02:37]} 11. Bb3 {[%clk 0:02:27]}  Nc7 {[%clk 0:02:29]} 12. Bxe6 {[%clk 0:02:19]}  Nxe6 {[%clk 0:02:28]} 13. Nc4 {[%clk 0:02:19]}  f5 {[%clk 0:02:25]} 14. Ne3 {[%clk 0:02:18]}  f4 {[%clk 0:02:19]} 15. Nd5 {[%clk 0:02:17]}  Qf7 {[%clk 0:02:17]} 16. Qb3 {[%clk 0:02:06]}  h6 {[%clk 0:02:10]} 17. a4 {[%clk 0:02:02]}  Rab8 {[%clk 0:02:08]} 18. Nd2 {[%clk 0:01:57]}  Rfd8 {[%clk 0:01:55]} 19. Nc4 {[%clk 0:01:54]}  Ne7 {[%clk 0:01:45]} 20. Nd2 {[%clk 0:01:48]}  Nxd5 {[%clk 0:01:40]} 21. Qxd5 {[%clk 0:01:49]}  Nc7 {[%clk 0:01:30]} 22. Qxf7+ {[%clk 0:01:48]}  Kxf7 {[%clk 0:01:31]} 23. h4 {[%clk 0:01:49]}  b6 {[%clk 0:01:23]} 24. g3 {[%clk 0:01:48]}  fxg3 {[%clk 0:01:23]} 25. fxg3 {[%clk 0:01:48]}  d5 {[%clk 0:01:22]} 26. Ke2 {[%clk 0:01:47]}  Ke6 {[%clk 0:01:14]} 27. Rhf1 {[%clk 0:01:43]}  a6 {[%clk 0:01:11]} 28. Rf3 {[%clk 0:01:29]}  Rf8 {[%clk 0:01:07]} 29. Rxf8 {[%clk 0:01:18]}  Rxf8 {[%clk 0:01:08]} 30. b4 {[%clk 0:01:17]}  cxb4 {[%clk 0:00:57]} 31. cxb4 {[%clk 0:01:16]}  Kd7 {[%clk 0:00:50]} 32. a5 {[%clk 0:01:11]}  Rb8 {[%clk 0:00:46]} 33. exd5 {[%clk 0:01:04]}  bxa5 {[%clk 0:00:45]} 34. bxa5 {[%clk 0:00:50]}  Nxd5 {[%clk 0:00:43]} 35. Nc4 {[%clk 0:00:50]}  Ke6 {[%clk 0:00:40]} 36. Kd2 {[%clk 0:00:51]}  Rb5 {[%clk 0:00:37]} 37. Re1 {[%clk 0:00:48]}  Nb4 {[%clk 0:00:32]} 38. Ra1 {[%clk 0:00:21]}  Nc6 {[%clk 0:00:32]} 39. Ke3 {[%clk 0:00:21]}  Kd5 {[%clk 0:00:28]} 40. Nb6+ {[%clk 0:00:21]}  Ke6 {[%clk 0:00:28]} 41. Nc4 {[%clk 0:00:22]}  Kd5 {[%clk 0:00:19]} 42. g4 {[%clk 0:00:22]}  g5 {[%clk 0:00:16]} 43. hxg5 {[%clk 0:00:20]}  hxg5 {[%clk 0:00:17]} 44. Nb6+ {[%clk 0:00:19]}  Ke6 {[%clk 0:00:17]} 45. Nc4 {[%clk 0:00:20]}  Kd5 {[%clk 0:00:17]} 46. Ra2 {[%clk 0:00:19]}  Rb3 {[%clk 0:00:16]} 47. Nb6+ {[%clk 0:00:14]}  Ke6 {[%clk 0:00:16]} 48. Na4 {[%clk 0:00:13]}  Kd5 {[%clk 0:00:13]} 49. Rh2 {[%clk 0:00:08]}  Nxa5 {[%clk 0:00:10]} 50. Rc2 {[%clk 0:00:09]}  Nb7 {[%clk 0:00:09]} 51. Nc3+ {[%clk 0:00:09]}  Ke6 {[%clk 0:00:08]} 52. Ne4 {[%clk 0:00:10]}  a5 {[%clk 0:00:06]} 53. Rc6+ {[%clk 0:00:10]}  Kd7 {[%clk 0:00:06]} 54. Ra6 {[%clk 0:00:11]}  Rb4 {[%clk 0:00:05]} 55. Nf6+ {[%clk 0:00:07]}  Kc8 {[%clk 0:00:04]} 56. Rc6+ {[%clk 0:00:06]}  Kb8 {[%clk 0:00:04]} 57. Ne4 {[%clk 0:00:06]}  Ka7 {[%clk 0:00:03]} 58. Kf3 {[%clk 0:00:02]}  a4 {[%clk 0:00:03]} 59. Nxg5 {[%clk 0:00:03]}  a3 {[%clk 0:00:04]} 60. Rc1 {[%clk 0:00:03]}  Rf4+ {[%clk 0:00:04]} 61. Kg3 {[%clk 0:00:03]}  a2 {[%clk 0:00:03]} 62. Ra1 {[%clk 0:00:03]}  Ra4 {[%clk 0:00:04]} 63. Ne4 {[%clk 0:00:04]}  Na5 {[%clk 0:00:04]} 64. Nc3 {[%clk 0:00:04]}  Ra3 {[%clk 0:00:03]} 65. Rxa2 {[%clk 0:00:04]}  Rxc3 {[%clk 0:00:02]} 66. Rxa5+ {[%clk 0:00:05]}  Kb6 {[%clk 0:00:03]} 67. Rxe5 {[%clk 0:00:05]}  Rxd3+ {[%clk 0:00:04]} 68. Kf4 {[%clk 0:00:06]}  Kc6 {[%clk 0:00:03]} 69. g5 {[%clk 0:00:06]}  Kd6 {[%clk 0:00:03]} 70. Re1 {[%clk 0:00:07]}  Rd2 {[%clk 0:00:03]} 71. g6 {[%clk 0:00:06]}  Rg2 {[%clk 0:00:02]} 72. Kf5 {[%clk 0:00:06]}  Kd7 {[%clk 0:00:02]} 73. Kf6 {[%clk 0:00:07]}  Kd6 {[%clk 0:00:01]} 74. g7 {[%clk 0:00:06]}  Rf2+ {[%clk 0:00:01]} 75. Kg6 {[%clk 0:00:07]}  Rg2+ {[%clk 0:00:02]} 76. Kf7 {[%clk 0:00:07]}  Rf2+ {[%clk 0:00:02]} 77. Kg8 {[%clk 0:00:08]}  Kd7 {[%clk 0:00:00]} 78. Re4 {[%clk 0:00:07]} 1-0


[Site "https://www.chess.com"]

[Event "Titled Tuesday Blitz May 16 Late 2023"]
[White "Pap, Gyula"]
[Black "Sieciechowicz, Marcin"]
[WhiteFideId "725323"]
[BlackFideId "1130170"]
[WhiteElo "2519"]
[BlackElo "2302"]
[Result "1-0"]
[Round "09"]
[TimeControl "180+2"]
[Date "2023.05.16"]
[WhiteClock "0:00:50"]
[BlackClock "0:00:10"]

1. Nf3 {[%clk 0:03:00]}  Nf6 {[%clk 0:02:59]} 2. g3 {[%clk 0:03:00]}  d5 {[%clk 0:03:00]} 3. Bg2 {[%clk 0:03:00]}  c6 {[%clk 0:03:00]} 4. O-O {[%clk 0:02:59]}  Bf5 {[%clk 0:03:01]} 5. c4 {[%clk 0:02:59]}  e6 {[%clk 0:03:01]} 6. d3 {[%clk 0:02:58]}  Nbd7 {[%clk 0:03:01]} 7. cxd5 {[%clk 0:02:52]}  cxd5 {[%clk 0:02:58]} 8. Nc3 {[%clk 0:02:51]}  Bg6 {[%clk 0:02:47]} 9. Qb3 {[%clk 0:02:28]}  Qb6 {[%clk 0:02:46]} 10. Qxb6 {[%clk 0:02:28]}  Nxb6 {[%clk 0:02:45]} 11. Nb5 {[%clk 0:02:26]}  Rc8 {[%clk 0:02:27]} 12. Nxa7 {[%clk 0:02:23]}  Rc2 {[%clk 0:02:27]} 13. Nd4 {[%clk 0:02:18]}  Rc5 {[%clk 0:02:27]} 14. Bd2 {[%clk 0:02:03]}  Be7 {[%clk 0:02:10]} 15. Bb4 {[%clk 0:01:59]}  Rc7 {[%clk 0:02:09]} 16. Nab5 {[%clk 0:01:59]}  Rc8 {[%clk 0:02:08]} 17. Nd6+ {[%clk 0:01:56]}  Bxd6 {[%clk 0:02:08]} 18. Bxd6 {[%clk 0:01:56]}  Kd7 {[%clk 0:02:05]} 19. Bb4 {[%clk 0:01:54]}  h5 {[%clk 0:01:53]} 20. a4 {[%clk 0:01:53]}  h4 {[%clk 0:01:52]} 21. a5 {[%clk 0:01:53]}  Na8 {[%clk 0:01:50]} 22. Rfc1 {[%clk 0:01:38]}  Rxc1+ {[%clk 0:01:50]} 23. Rxc1 {[%clk 0:01:37]}  h3 {[%clk 0:01:50]} 24. Bf1 {[%clk 0:01:37]}  Nc7 {[%clk 0:01:50]} 25. Nf3 {[%clk 0:01:37]}  Na6 {[%clk 0:01:37]} 26. Ne5+ {[%clk 0:01:31]}  Kd8 {[%clk 0:01:38]} 27. Bd6 {[%clk 0:01:30]}  Nd7 {[%clk 0:01:37]} 28. Nxg6 {[%clk 0:01:26]}  fxg6 {[%clk 0:01:37]} 29. d4 {[%clk 0:01:23]}  Nf6 {[%clk 0:01:29]} 30. e3 {[%clk 0:01:21]}  Kd7 {[%clk 0:01:21]} 31. Be5 {[%clk 0:01:13]}  Rc8 {[%clk 0:01:03]} 32. Rxc8 {[%clk 0:01:13]}  Kxc8 {[%clk 0:01:04]} 33. Bxh3 {[%clk 0:01:13]}  Kd7 {[%clk 0:01:04]} 34. f3 {[%clk 0:01:12]}  Nb4 {[%clk 0:01:03]} 35. Bf1 {[%clk 0:01:12]}  Nc6 {[%clk 0:00:47]} 36. Bb5 {[%clk 0:01:10]}  Kc8 {[%clk 0:00:47]} 37. a6 {[%clk 0:01:08]}  Na7 {[%clk 0:00:47]} 38. axb7+ {[%clk 0:01:06]}  Kxb7 {[%clk 0:00:48]} 39. Bd3 {[%clk 0:01:06]}  g5 {[%clk 0:00:46]} 40. g4 {[%clk 0:01:00]}  Nc6 {[%clk 0:00:45]} 41. Bd6 {[%clk 0:01:00]}  Na5 {[%clk 0:00:33]} 42. Kf2 {[%clk 0:00:57]}  Nc4 {[%clk 0:00:32]} 43. Bf8 {[%clk 0:00:53]}  Nxb2 {[%clk 0:00:32]} 44. Bg6 {[%clk 0:00:54]}  Kc7 {[%clk 0:00:22]} 45. Bxg7 {[%clk 0:00:54]}  Ng8 {[%clk 0:00:21]} 46. Bf7 {[%clk 0:00:52]}  Ne7 {[%clk 0:00:18]} 47. Bxe6 {[%clk 0:00:52]}  Kd6 {[%clk 0:00:18]} 48. Bf7 {[%clk 0:00:51]}  Nd3+ {[%clk 0:00:18]} 49. Kg3 {[%clk 0:00:49]}  Nc6 {[%clk 0:00:10]} 50. Bf6 {[%clk 0:00:50]} 1-0


[Site "https://www.chess.com"]